bitfinex-derivatives/quotes_SOLF0:USTF0_20230830
["timestamp","ask_amount","ask_price","bid_price","bid_amount"]
[1693399593076,489.80271662,21.384,21.358,511.04926829]
[1693399593077,112.92,21.379,21.365,112.92]
[1693399593269,112.92,21.382,21.369,112.92]
[1693399593467,8.60047744,21.381,21.369,112.92]
[1693399593767,8.60047744,21.381,21.37,19.9821]
[1693399593961,46.61,21.378,21.37,19.9821]
[1693399596165,112.92,21.381,21.37,19.9821]
[1693399596962,46.61,21.378,21.37,19.9821]
[1693399597172,112.92,21.381,21.37,19.9821]
[1693399598167,46.61,21.379,21.37,19.9821]
[1693399598574,0.74595026,21.378,21.373,0.76261121]
[1693399599573,0.74595026,21.378,21.374,112.92]
[1693399600469,112.92,21.388,21.374,112.92]
[1693399600671,14.04,21.386,21.374,112.92]
[1693399600870,46.61,21.388,21.378,112.92]
[1693399602073,14.04,21.386,21.378,112.92]
[1693399602267,14.04,21.386,21.378,206.17]
[1693399603269,46.61,21.387,21.378,206.17]
[1693399604170,206.17,21.393,21.378,206.17]
[1693399604468,206.17,21.393,21.372,37.11131898]
[1693399604469,14.04,21.391,21.381,206.17]
[1693399604973,60.65,21.395,21.381,206.17]
[1693399605170,14.04,21.391,21.381,206.17]
[1693399606370,14.04,21.391,21.384,0.72672301]
[1693399606675,0.77152383,21.388,21.384,0.72672301]
[1693399607066,46.61,21.392,21.384,0.72672301]
[1693399607264,46.61,21.393,21.384,0.72672301]
[1693399607475,8.59482366,21.392,21.384,0.72672301]
[1693399607775,46.61,21.393,21.384,0.72672301]
[1693399608273,46.61,21.393,21.383,206.17]
[1693399608471,46.61,21.393,21.386,206.17]
[1693399608873,206.17,21.402,21.386,206.17]
[1693399609077,55.2043716,21.401,21.386,206.17]
[1693399609272,14.03,21.397,21.386,206.17]
[1693399609475,55.2043716,21.396,21.386,206.17]
[1693399609673,8.5943716,21.395,21.386,206.17]
[1693399609878,22.6243716,21.395,21.386,206.17]
[1693399610083,14.03,21.395,21.386,206.17]
[1693399610576,46.61,21.401,21.386,206.17]
[1693399610773,14.03,21.399,21.386,206.17]
[1693399610975,14.03,21.397,21.386,206.17]
[1693399611175,14.03,21.395,21.386,206.17]
[1693399611370,14.03,21.393,21.386,206.17]
[1693399611582,46.61,21.401,21.386,206.17]
[1693399611774,46.61,21.392,21.386,206.17]
[1693399611970,46.61,21.392,21.378,500.06]
[1693399611971,46.61,21.392,21.385,206.17]
[1693399612473,46.61,21.392,21.386,19.761]
[1693399612881,46.61,21.401,21.386,19.761]
[1693399613073,46.61,21.395,21.386,19.761]
[1693399614078,46.61,21.395,21.387,0.64229842]
[1693399614274,206.17,21.402,21.387,0.64229842]
[1693399614275,46.61,21.401,21.387,0.64229842]
[1693399614479,46.61,21.395,21.387,0.64229842]
[1693399615483,46.61,21.401,21.386,19.761]
[1693399615681,46.61,21.395,21.386,19.761]
[1693399618083,46.61,21.401,21.386,19.761]
[1693399618386,46.61,21.395,21.386,19.761]
[1693399619387,46.61,21.401,21.386,19.761]
[1693399619682,46.61,21.395,21.386,19.761]
[1693399620480,206.17,21.402,21.386,19.761]
[1693399620681,55.20442013,21.401,21.386,19.761]
[1693399620884,46.61,21.394,21.386,19.761]
[1693399621284,46.61,21.394,21.388,0.7386773]
[1693399621885,46.61,21.401,21.388,0.7386773]
[1693399622183,46.61,21.394,21.388,0.7386773]
[1693399622780,46.61,21.393,21.386,132.141]
[1693399623385,14.03,21.397,21.386,19.761]
[1693399623587,126.41,21.395,21.386,19.761]
[1693399623776,14.03,21.393,21.388,0.06]
[1693399623976,112.38,21.395,21.388,0.06]
[1693399624182,14.03,21.393,21.388,0.06]
[1693399624388,14.03,21.391,21.388,0.06]
[1693399624592,46.61,21.389,21.388,0.06]
[1693399626584,46.61,21.39,21.388,0.06]
[1693399627890,46.61,21.389,21.388,0.06]
[1693399629396,14.03,21.391,21.388,0.06]
[1693399629892,14.03,21.389,21.388,0.06]
[1693399630098,112.38,21.397,21.388,0.06]
[1693399630397,46.61,21.393,21.388,0.06]
[1693399630593,60.64,21.391,21.388,0.06]
[1693399630891,112.38,21.397,21.388,0.06]
[1693399631096,14.03,21.395,21.388,0.06]
[1693399631403,14.03,21.393,21.388,0.06]
[1693399631695,112.38,21.397,21.388,0.06]
[1693399631888,8.59441035,21.396,21.388,0.06]
[1693399632083,112.38,21.402,21.388,0.06]
[1693399632393,8.59411601,21.401,21.388,0.06]
[1693399632594,46.61,21.399,21.391,112.38]
[1693399632896,8.59411601,21.398,21.391,112.38]
[1693399633905,8.59411601,21.397,21.391,112.38]
[1693399634097,8.59411601,21.401,21.391,112.38]
[1693399635605,8.59411601,21.401,21.393,112.38]
[1693399635902,46.61,21.402,21.393,112.38]
[1693399636100,46.61,21.402,21.394,251.32632769]
[1693399636603,112.38,21.407,21.395,19.6319]
[1693399636806,46.61,21.408,21.397,112.38]
[1693399637003,8.5901184,21.407,21.395,19.6319]
[1693399637304,46.61,21.408,21.397,112.38]
[1693399637504,46.61,21.408,21.398,251.31139347]
[1693399637903,14.03,21.41,21.398,251.31139347]
[1693399638102,8.58853283,21.409,21.398,251.31139347]
[1693399638505,14.03,21.41,21.398,251.31139347]
[1693399638506,14.03,21.41,21.4,112.38]
[1693399638807,8.58856666,21.409,21.4,112.38]
[1693399639208,158.99,21.416,21.403,112.38]
[1693399639407,8.58735917,21.415,21.406,112.38]
[1693399639610,8.58735917,21.415,21.403,112.38]
[1693399639904,112.38,21.423,21.409,112.38]
[1693399640103,14.02,21.421,21.409,112.38]
[1693399640307,112.38,21.423,21.409,112.38]
[1693399640308,8.58554896,21.42,21.41,21.1022]
[1693399640504,8.58554896,21.419,21.41,21.1022]
[1693399640701,14.02,21.421,21.41,21.1022]
[1693399640902,8.58554896,21.42,21.41,21.1022]
[1693399641100,8.58554896,21.419,21.41,21.1022]
[1693399641308,14.02,21.421,21.41,21.1022]
[1693399641502,576.0,21.433,21.413,112.38]
[1693399641503,8.58554896,21.42,21.413,112.38]
[1693399641704,8.58554896,21.423,21.413,112.38]
[1693399641908,8.58554896,21.419,21.413,112.38]
[1693399642113,8.58554896,21.418,21.413,112.38]
[1693399642308,8.58554896,21.424,21.413,112.38]
[1693399642504,8.58554896,21.423,21.413,112.38]
[1693399643407,8.58554896,21.424,21.413,112.38]
[1693399643607,8.58554896,21.422,21.413,112.38]
[1693399643809,8.58554896,21.421,21.413,112.38]
[1693399644003,8.58554896,21.424,21.413,112.38]
[1693399644309,8.58554896,21.423,21.415,112.38]
[1693399644507,8.58554896,21.427,21.415,112.38]
[1693399644704,8.58554896,21.426,21.415,112.38]
[1693399644911,8.58554896,21.425,21.419,112.38]
[1693399645204,4.896e-05,21.424,21.422,112.38]
[1693399645514,4.896e-05,21.434,21.422,112.38]
[1693399647314,4.896e-05,21.434,21.423,205.31]
[1693399647613,4.896e-05,21.435,21.423,205.31]
[1693399649313,46.61,21.431,21.42,205.31]
[1693399649515,4.896e-05,21.43,21.42,205.31]
[1693399649711,14.02,21.433,21.42,205.31]
[1693399649712,4.896e-05,21.432,21.42,205.31]
[1693399649906,4.896e-05,21.432,21.423,205.31]
[1693399650415,4.896e-05,21.432,21.424,20.534]
[1693399650614,14.02,21.433,21.424,20.534]
[1693399650817,46.61,21.43,21.424,20.534]
[1693399651115,4.896e-05,21.429,21.424,20.534]
[1693399651512,4.896e-05,21.434,21.424,20.534]
[1693399651920,60.63,21.433,21.424,20.534]
[1693399652119,4.896e-05,21.432,21.424,20.534]
[1693399652515,4.896e-05,21.434,21.424,20.534]
[1693399653017,14.02,21.433,21.424,20.534]
[1693399653220,4.896e-05,21.432,21.424,20.534]
[1693399654017,46.61,21.43,21.424,20.534]
[1693399654220,4.896e-05,21.429,21.424,20.534]
[1693399654617,4.896e-05,21.434,21.424,20.534]
[1693399655221,14.02,21.433,21.424,20.534]
[1693399655421,4.896e-05,21.432,21.424,20.534]
[1693399655621,4.896e-05,21.434,21.424,20.534]
[1693399656023,46.61,21.43,21.424,20.534]
[1693399656219,4.896e-05,21.429,21.424,20.534]
[1693399656914,4.896e-05,21.432,21.424,20.534]
[1693399657114,46.61,21.43,21.424,20.534]
[1693399657319,4.896e-05,21.429,21.424,20.534]
[1693399658118,14.02,21.431,21.424,20.534]
[1693399658312,4.896e-05,21.43,21.424,20.534]
[1693399658513,4.896e-05,21.432,21.424,20.534]
[1693399659113,46.61,21.427,21.424,20.534]
[1693399659313,4.896e-05,21.426,21.424,20.534]
[1693399659712,4.896e-05,21.427,21.424,20.534]
[1693399660121,205.31,21.429,21.424,20.534]
[1693399660122,109.4732,21.429,21.424,20.534]
[1693399660321,37.51376574,21.449,21.424,20.534]
[1693399660514,205.31,21.445,21.428,205.31]
[1693399660718,8.57680534,21.444,21.428,205.31]
[1693399661225,55.18680534,21.444,21.428,205.31]
[1693399661425,8.57680534,21.443,21.428,205.31]
[1693399661919,8.57680534,21.442,21.428,205.31]
[1693399662117,8.57680534,21.441,21.428,205.31]
[1693399662322,205.31,21.445,21.43,205.31]
[1693399662323,8.57680534,21.44,21.43,205.31]
[1693399662519,8.57680534,21.444,21.43,205.31]
[1693399662718,8.57680534,21.443,21.43,205.31]
[1693399662914,8.57680534,21.442,21.43,205.31]
[1693399663116,8.57680534,21.444,21.43,205.31]
[1693399663326,205.31,21.445,21.43,205.31]
[1693399663327,8.57680534,21.443,21.43,205.31]
[1693399663527,8.57680534,21.442,21.43,205.31]
[1693399663730,205.31,21.445,21.43,205.31]
[1693399663930,8.57374365,21.444,21.435,205.31]
[1693399664128,8.57374365,21.443,21.435,205.31]
[1693399664336,8.57374365,21.442,21.435,205.31]
[1693399664529,8.57374365,21.441,21.435,205.31]
[1693399664936,8.57374365,21.44,21.435,205.31]
[1693399665236,46.61,21.445,21.43,205.31]
[1693399665536,46.61,21.445,21.431,21.0672]
[1693399665541,8.57562733,21.444,21.431,21.0672]
[1693399667033,251.92,21.442,21.431,21.0672]
[1693399667237,8.57562733,21.441,21.431,21.0672]
[1693399669541,46.61,21.437,21.423,205.31]
[1693399669736,14.0,21.436,21.423,205.31]
[1693399670444,46.61,21.437,21.427,205.31]
[1693399670646,46.61,21.444,21.43,205.31]
[1693399671144,46.61,21.441,21.434,205.31]
[1693399671337,8.57633273,21.44,21.434,205.31]
[1693399671641,244.01190827,21.448,21.434,205.31]
[1693399671938,14.0,21.446,21.436,205.31]
[1693399672134,8.57605525,21.445,21.436,205.31]
[1693399672339,24.70190827,21.448,21.436,205.31]
[1693399672340,14.0,21.446,21.436,205.31]
[1693399672539,24.70190827,21.448,21.436,205.31]
[1693399672540,8.57326864,21.445,21.436,205.31]
[1693399672740,24.70190827,21.448,21.436,205.31]
[1693399672936,14.0,21.446,21.436,205.31]
[1693399673140,8.57337713,21.445,21.44,13.98]
[1693399673345,24.70190827,21.448,21.44,13.98]
[1693399673534,8.57345556,21.447,21.44,13.98]
[1693399673734,14.0,21.446,21.44,13.98]
[1693399673939,8.57345556,21.445,21.44,13.98]
[1693399674141,8.57345556,21.444,21.439,205.31]
[1693399674349,24.70190827,21.448,21.439,205.31]
[1693399674538,60.61,21.446,21.44,13.98]
[1693399674734,8.57369255,21.445,21.439,205.31]
[1693399675646,55.18369255,21.445,21.439,205.31]
[1693399675939,8.57369255,21.444,21.439,205.31]
[1693399676542,46.61,21.451,21.439,205.31]
[1693399676746,8.57281531,21.45,21.44,13.98]
[1693399677444,8.57281531,21.449,21.442,205.31]
[1693399677641,8.57281531,21.448,21.442,205.31]
[1693399677840,8.57281531,21.447,21.443,20.0272]
[1693399678036,8.57281531,21.446,21.443,20.0272]
[1693399678241,46.61,21.452,21.443,20.0272]
[1693399678436,8.57269415,21.451,21.443,20.0272]
[1693399678843,8.57269415,21.45,21.443,20.0272]
[1693399679150,8.57269415,21.449,21.443,20.0272]
[1693399679350,8.57269415,21.455,21.444,205.31]
[1693399679549,14.0,21.453,21.444,205.31]
[1693399679748,8.57269415,21.452,21.444,205.31]
[1693399679950,8.57269415,21.456,21.444,205.31]
[1693399680146,8.57269415,21.455,21.444,205.31]
[1693399680446,8.57269415,21.455,21.447,23.19755034]
[1693399680845,14.0,21.453,21.447,23.19755034]
[1693399681045,8.57269415,21.452,21.447,23.19755034]
[1693399681249,8.57269415,21.451,21.449,205.31]
[1693399681451,8.57269415,21.45,21.449,205.31]
[1693399681640,8.57269415,21.456,21.449,205.31]
[1693399681839,8.57150069,21.455,21.449,205.31]
[1693399682140,14.0,21.453,21.449,205.31]
[1693399682345,8.57150069,21.452,21.449,205.31]
[1693399682546,8.57150069,21.451,21.449,205.31]
[1693399682742,23.00790337,21.461,21.449,205.31]
[1693399683051,14.0,21.459,21.449,205.31]
[1693399683246,46.61,21.456,21.449,205.31]
[1693399683549,8.57152554,21.455,21.449,205.31]
[1693399683745,8.57152554,21.455,21.447,23.19755034]
[1693399683951,205.31,21.452,21.447,22.56108428]
[1693399684151,8.57152554,21.451,21.447,22.56108428]
[1693399684350,55.18152554,21.451,21.447,22.56108428]
[1693399684547,14.0,21.448,21.447,22.56108428]
[1693399684752,22.57152554,21.448,21.447,22.56108428]
[1693399685048,22.57152554,21.448,21.435,226.3473]
[1693399685251,14.0,21.446,21.435,226.3473]
[1693399685451,8.57152554,21.445,21.435,226.3473]
[1693399685854,14.0,21.446,21.435,226.3473]
[1693399686348,14.0,21.448,21.435,226.3473]
[1693399686560,14.0,21.446,21.439,205.31]
[1693399686747,205.31,21.453,21.439,205.31]
[1693399687056,8.57385476,21.452,21.439,205.31]
[1693399687555,55.18385476,21.452,21.439,205.31]
[1693399687751,8.57385476,21.451,21.439,205.31]
[1693399687953,14.0,21.446,21.436,205.31]
[1693399690357,8.5745742,21.445,21.436,205.31]
[1693399691750,14.0,21.446,21.436,205.31]
[1693399694456,8.57478094,21.445,21.436,205.31]
[1693399695970,14.0,21.446,21.436,205.31]
[1693399696460,8.57488917,21.445,21.432,205.31]
[1693399696661,60.61,21.442,21.43,20.2095]
[1693399696867,8.57488917,21.441,21.43,20.2095]
[1693399698768,60.61,21.442,21.43,20.2095]
[1693399699568,205.31,21.446,21.432,13.97]
[1693399699767,55.18537633,21.445,21.432,13.97]
[1693399700066,14.0,21.448,21.435,205.31]
[1693399700267,14.0,21.446,21.435,205.31]
[1693399700460,8.57530956,21.445,21.435,205.31]
[1693399700662,46.61,21.446,21.435,205.31]
[1693399700858,8.57534238,21.445,21.435,205.31]
[1693399701062,219.31,21.446,21.432,205.31]
[1693399701263,8.57534238,21.445,21.432,205.31]
[1693399701663,55.18534238,21.445,21.432,205.31]
[1693399701864,8.57534238,21.444,21.432,205.31]
[1693399703870,46.61,21.441,21.43,225.5195]
[1693399706065,14.0,21.439,21.43,225.5195]
[1693399707069,46.61,21.441,21.43,225.5195]
[1693399707471,0.7606625,21.437,21.432,0.6385041]
[1693399712077,46.61,21.441,21.432,0.6385041]
[1693399712280,46.61,21.441,21.432,14.6085041]
[1693399712873,46.61,21.443,21.432,14.6085041]
[1693399713068,111.91,21.444,21.432,14.6085041]
[1693399713272,55.18571098,21.443,21.432,14.6085041]
[1693399713574,46.61,21.443,21.432,14.6085041]
[1693399713877,46.61,21.443,21.434,111.91]
[1693399715479,46.61,21.445,21.434,111.91]
[1693399715680,8.57568674,21.444,21.434,111.91]
[1693399716780,46.61,21.445,21.434,111.91]
[1693399717283,8.57472915,21.444,21.434,111.91]
[1693399717579,60.61,21.446,21.434,111.91]
[1693399717780,8.57468072,21.445,21.434,111.91]
[1693399718175,0.54,21.447,21.438,111.91]
[1693399719272,14.0,21.446,21.438,111.91]
[1693399719478,46.61,21.445,21.438,111.91]
[1693399720080,14.0,21.446,21.438,111.91]
[1693399720276,0.54,21.447,21.438,111.91]
[1693399720477,0.54,21.447,21.441,111.91]
[1693399723282,0.54,21.447,21.442,19.818]
[1693399724383,46.61,21.452,21.442,19.818]
[1693399725485,8.57253571,21.451,21.442,19.818]
[1693399726990,46.61,21.452,21.442,19.818]
[1693399729090,111.91,21.457,21.446,13.96]
[1693399729286,8.57219819,21.456,21.446,13.96]
[1693399729587,8.57219819,21.456,21.452,13.96]
[1693399730382,102.54789819,21.46,21.448,111.91]
[1693399730594,46.61,21.467,21.455,111.91]
[1693399731594,111.91,21.468,21.455,111.91]
[1693399733499,0.09182566,21.464,21.46,13.99]
[1693399733699,111.91,21.472,21.46,13.99]
[1693399733899,8.56629434,21.471,21.46,13.99]
[1693399734598,55.17629434,21.471,21.46,13.99]
[1693399734795,8.56629434,21.47,21.46,13.99]
[1693399735203,8.56629434,21.47,21.459,111.91]
[1693399735498,111.91,21.468,21.455,111.91]
[1693399735697,138.40778182,21.468,21.455,111.91]
[1693399737398,8.56671894,21.467,21.459,0.7184017]
[1693399738500,55.17671894,21.467,21.459,0.7184017]
[1693399738689,46.61,21.467,21.459,0.7184017]
[1693399738890,138.40778182,21.468,21.459,0.7184017]
[1693399739095,138.40778182,21.468,21.46,13.99]
[1693399739300,26.49778182,21.468,21.46,13.99]
[1693399740503,26.49778182,21.468,21.459,112.6284017]
[1693399740703,8.56675099,21.467,21.459,112.6284017]
[1693399740995,26.49778182,21.468,21.459,112.6284017]
[1693399741299,8.56676916,21.467,21.459,112.6284017]
[1693399741493,26.49778182,21.468,21.459,112.6284017]
[1693399741699,8.56676492,21.467,21.459,112.6284017]
[1693399747101,55.17676492,21.467,21.459,112.6284017]
[1693399747304,8.56676492,21.466,21.459,112.6284017]
[1693399747696,8.56676492,21.466,21.449,21.247]
[1693399747697,8.56676492,21.466,21.455,111.91]
[1693399747901,111.91,21.461,21.449,21.247]
[1693399748105,46.61,21.46,21.449,21.247]
[1693399748303,111.91,21.461,21.449,21.247]
[1693399748903,46.61,21.46,21.449,21.247]
[1693399750399,46.61,21.463,21.449,21.247]
[1693399751004,46.61,21.463,21.455,13.99]
[1693399752206,8.56864181,21.462,21.455,13.99]
[1693399752610,8.56864181,21.462,21.452,111.91]
[1693399752808,46.61,21.463,21.452,111.91]
[1693399753500,46.61,21.464,21.452,111.91]
[1693399753705,138.40778182,21.468,21.455,111.91]
[1693399754701,46.61,21.467,21.455,111.91]
[1693399755505,138.40778182,21.468,21.455,111.91]
[1693399755707,26.49778182,21.468,21.46,13.99]
[1693399756013,26.49778182,21.468,21.459,111.91]
[1693399756203,26.49778182,21.468,21.456,111.91]
[1693399756812,46.61,21.467,21.462,0.64558623]
[1693399757214,111.91,21.469,21.462,0.64558623]
[1693399757809,46.61,21.468,21.462,0.64558623]
[1693399758512,111.91,21.473,21.462,0.64558623]
[1693399758815,55.17507705,21.472,21.462,0.64558623]
[1693399759015,8.56507705,21.471,21.462,0.64558623]
[1693399759213,8.56507705,21.471,21.463,111.91]
[1693399759417,46.61,21.473,21.463,111.91]
[1693399759611,46.61,21.473,21.463,132.0724]
[1693399759811,158.52,21.472,21.463,20.1624]
[1693399760017,158.52,21.472,21.462,0.64558623]
[1693399760615,158.52,21.472,21.459,111.91]
[1693399761219,8.56458533,21.471,21.459,111.91]
[1693399761415,158.52,21.472,21.459,111.91]
[1693399761914,111.91,21.47,21.458,13.98]
[1693399762123,111.91,21.47,21.457,111.91]
[1693399763916,111.91,21.47,21.458,13.98]
[1693399765226,158.52,21.472,21.46,111.91]
[1693399770222,8.5650935,21.471,21.46,111.91]
[1693399770922,158.52,21.472,21.46,111.91]
[1693399771122,0.64470002,21.468,21.46,111.91]
[1693399771919,0.64470002,21.468,21.463,0.74726478]
[1693399772732,111.91,21.47,21.458,13.98]
[1693399774426,111.91,21.47,21.457,111.91]
[1693399774823,46.61,21.469,21.457,111.91]
[1693399775024,111.91,21.467,21.454,111.91]
[1693399775328,46.61,21.466,21.455,13.98]
[1693399776927,0.69687676,21.463,21.458,0.76704616]
[1693399777133,0.69687676,21.463,21.458,112.67704616]
[1693399777326,0.69687676,21.463,21.462,13.98]
[1693399777527,111.91,21.471,21.458,112.67704616]
[1693399778130,158.52,21.471,21.458,112.67704616]
[1693399778433,158.52,21.471,21.458,111.91]
[1693399779331,158.52,21.471,21.462,0.67784103]
[1693399779632,158.52,21.471,21.463,13.98]
[1693399779834,158.52,21.471,21.462,14.65784103]
[1693399780131,158.52,21.471,21.462,0.67784103]
[1693399781929,46.61,21.468,21.462,0.67784103]
[1693399785033,111.91,21.469,21.462,0.67784103]
[1693399785235,20.3716,21.472,21.462,0.67784103]
[1693399785236,46.61,21.47,21.462,0.67784103]
[1693399785435,46.61,21.47,21.462,14.65784103]
[1693399786536,46.61,21.47,21.462,0.67784103]
[1693399787337,20.3716,21.472,21.462,14.65784103]
[1693399787540,46.61,21.471,21.462,0.67784103]
[1693399787740,46.61,21.468,21.462,0.67784103]
[1693399788337,111.91,21.469,21.462,0.67784103]
[1693399788635,46.61,21.468,21.462,0.67784103]
[1693399789133,111.91,21.469,21.462,0.67784103]
[1693399789533,46.61,21.468,21.462,0.67784103]
[1693399790238,111.91,21.469,21.462,0.67784103]
[1693399791937,46.61,21.468,21.462,0.67784103]
[1693399794545,46.61,21.471,21.462,0.67784103]
[1693399797141,46.61,21.472,21.462,0.67784103]
[1693399799142,46.61,21.472,21.463,250.53154516]
[1693399799343,46.61,21.472,21.462,0.67784103]
[1693399801139,46.61,21.473,21.462,0.67784103]
[1693399801343,46.61,21.473,21.464,111.91]
[1693399801544,46.61,21.473,21.467,111.91]
[1693399803642,19.8046,21.479,21.467,111.91]
[1693399803643,19.8046,21.479,21.468,0.7486758]
[1693399804750,66.4146,21.479,21.468,0.7486758]
[1693399806146,46.61,21.482,21.47,111.91]
[1693399806346,8.56117475,21.481,21.47,111.91]
[1693399807654,8.56117475,21.481,21.473,0.63005135]
[1693399811162,19.9365,21.487,21.473,112.54005135]
[1693399811163,46.61,21.484,21.473,112.54005135]
[1693399811364,8.56103922,21.483,21.473,112.54005135]
[1693399811958,8.56103922,21.483,21.473,111.91]
[1693399812159,55.17103922,21.483,21.473,111.91]
[1693399812359,46.61,21.481,21.469,111.91]
[1693399812559,46.61,21.478,21.466,111.91]
[1693399812959,111.91,21.479,21.466,111.91]
[1693399813658,46.61,21.478,21.466,111.91]
[1693399814161,111.91,21.472,21.46,111.91]
[1693399814562,46.61,21.471,21.46,111.91]
[1693399814864,111.91,21.472,21.46,111.91]
[1693399815562,46.61,21.471,21.46,111.91]
[1693399816453,111.91,21.469,21.456,111.91]
[1693399816659,46.61,21.468,21.457,250.57276379]
[1693399821758,46.61,21.465,21.457,250.57276379]
[1693399821964,46.61,21.465,21.458,250.57276379]
[1693399822164,46.61,21.465,21.459,250.57276379]
[1693399822465,46.61,21.465,21.46,250.57276379]
[1693399822662,46.61,21.465,21.461,250.57276379]
[1693399822862,46.61,21.465,21.462,250.57276379]
[1693399823064,46.61,21.465,21.452,111.91]
[1693399823263,46.61,21.465,21.453,250.55131308]
[1693399824359,111.91,21.462,21.453,250.55131308]
[1693399824666,111.91,21.457,21.454,250.55131308]
[1693399824862,111.91,21.457,21.455,250.55131308]
[1693399825062,111.91,21.457,21.456,250.55131308]
[1693399825560,111.91,21.457,21.446,13.98]
[1693399825767,111.91,21.457,21.447,250.55131308]
[1693399825965,111.91,21.457,21.448,250.55131308]
[1693399826161,111.91,21.457,21.444,111.91]
[1693399826162,111.91,21.457,21.449,250.55131308]
[1693399826465,111.91,21.457,21.444,111.91]
[1693399827460,158.52,21.457,21.444,111.91]
[1693399830965,46.61,21.457,21.448,111.91]
[1693399831861,46.61,21.46,21.448,111.91]
[1693399832066,46.61,21.46,21.451,13.98]
[1693399832967,46.61,21.462,21.451,13.98]
[1693399833764,46.61,21.459,21.453,0.75337102]
[1693399842068,158.52,21.458,21.453,0.75337102]
[1693399847275,46.61,21.457,21.453,0.75337102]
[1693399847479,100.59,21.455,21.453,0.75337102]
[1693399847781,46.61,21.454,21.453,0.75337102]
[1693399848380,147.2,21.454,21.453,0.75337102]
[1693399850772,147.2,21.454,21.443,100.59]
[1693399850971,100.59,21.45,21.443,100.59]
[1693399851177,100.59,21.447,21.439,100.59]
[1693399852276,46.61,21.449,21.436,111.85]
[1693399854177,46.61,21.449,21.438,13.98]
[1693399854575,46.61,21.449,21.44,0.75940359]
[1693399855479,0.7123038,21.446,21.44,0.75940359]
[1693399858986,112.5623038,21.446,21.44,0.75940359]
[1693399863180,0.7123038,21.446,21.44,0.75940359]
[1693399872597,147.29,21.444,21.44,0.75940359]
[1693399872998,100.68,21.443,21.44,0.75940359]
[1693399873296,100.68,21.441,21.44,0.75940359]
[1693399885204,68.7712,21.441,21.44,0.75940359]
[1693399885411,100.68,21.444,21.44,0.75940359]
[1693399885903,0.7123038,21.446,21.441,100.68]
[1693399891106,100.68,21.451,21.444,100.68]
[1693399892009,100.68,21.454,21.446,100.68]
[1693399900330,0.0638412,21.452,21.448,0.63822477]
[1693399901920,100.68,21.451,21.448,0.63822477]
[1693399902126,100.68,21.449,21.448,0.63822477]
[1693399902319,147.29,21.449,21.448,0.63822477]
[1693399904425,100.68,21.449,21.448,0.63822477]
[1693399912025,100.68,21.45,21.448,0.63822477]
[1693399921936,100.68,21.449,21.448,0.63822477]
[1693399925346,100.68,21.449,21.437,100.68]
[1693399925545,100.68,21.445,21.437,100.68]
[1693399929848,100.68,21.445,21.439,0.74063148]
[1693399930448,100.68,21.441,21.439,0.74063148]
[1693399931349,100.68,21.441,21.434,100.68]
[1693399932745,100.68,21.441,21.435,0.63300281]